bitfinex-derivatives/quotes_SOLF0:USTF0_20250307
["timestamp","ask_amount","ask_price","bid_price","bid_amount"]
[1741316299186,31.18,140.96,140.86,15.80301039]
[1741316299382,31.18,140.96,140.86,46.98301039]
[1741316299782,0.04655451,140.92,140.86,46.98301039]
[1741316300890,0.04655451,140.92,140.86,54.08101039]
[1741316301082,0.04655451,140.92,140.86,46.98301039]
[1741316301887,7.0967,140.9,140.86,46.98301039]
[1741316302087,0.04655451,140.92,140.85,4.099]
[1741316302388,33.0878,140.92,140.82,31.18]
[1741316302593,0.04829521,140.9,140.82,31.18]
[1741316303096,7.0986,140.86,140.82,31.18]
[1741316303594,0.05245786,140.85,140.83,7.0998]
[1741316303795,33.0878,140.92,140.83,7.0998]
[1741316303994,0.04481257,140.85,140.83,7.0998]
[1741316304195,0.05230323,140.85,140.83,7.0998]
[1741316304498,0.05230323,140.85,140.81,29.49579125]
[1741316305293,0.05230323,140.85,140.81,3.8914]
[1741316305697,7.0998,140.84,140.81,3.8914]
[1741316306191,0.05230323,140.85,140.81,3.8914]
[1741316306395,7.1004,140.82,140.79,31.18]
[1741316306583,0.05230323,140.85,140.79,31.18]
[1741316306783,7.1001,140.83,140.79,31.18]
[1741316306991,0.05297903,140.83,140.77,3.7952]
[1741316308497,7.15317903,140.83,140.77,3.7952]
[1741316308694,0.05297903,140.83,140.77,3.7952]
[1741316309096,0.05297903,140.83,140.79,7.1015]
[1741316309395,0.05297903,140.83,140.77,3.7952]
[1741316309796,0.05297903,140.83,140.75,31.18]
[1741316310396,7.15297903,140.83,140.75,31.18]
[1741316310598,0.05297903,140.83,140.75,31.18]
[1741316311000,7.1004,140.82,140.76,7.103]
[1741316311388,0.05297903,140.83,140.75,31.18]
[1741316311588,31.18,140.84,140.75,31.18]
[1741316311799,0.04596749,140.8,140.75,31.18]
[1741316311998,0.04596749,140.8,140.73,15.80301039]
[1741316312200,7.14766749,140.8,140.74,7.1043]
[1741316312597,7.14766749,140.8,140.74,7.1042]
[1741316312792,7.14766749,140.8,140.73,46.98301039]
[1741316313098,0.04596749,140.8,140.73,46.98301039]
[1741316313690,7.14766749,140.8,140.75,7.1039]
[1741316313901,0.04596749,140.8,140.75,7.1039]
[1741316314605,0.04596749,140.8,140.76,7.103]
[1741316315003,0.04596749,140.8,140.73,15.80301039]
[1741316316992,2.0386,140.86,140.76,15.80301039]
[1741316317193,31.18,140.91,140.79,15.80301039]
[1741316317500,31.18,140.91,140.82,15.80301039]
[1741316317691,31.18,140.91,140.83,31.18]
[1741316318296,0.05018772,140.88,140.86,0.04624572]
[1741316318701,33.0545,140.94,140.87,7.0974]
[1741316318902,0.04963035,140.88,140.83,31.18]
[1741316319103,7.14177441,140.91,140.89,0.04854763]
[1741316319302,33.0545,140.94,140.83,31.18]
[1741316319503,0.0514083,140.91,140.89,0.04838266]
[1741316322005,0.0514083,140.91,140.9,7.0963]
[1741316322907,0.0514083,140.91,140.89,0.04838266]
[1741316324601,31.16,140.99,140.89,0.04838266]
[1741316324798,31.16,140.99,140.88,15.80301039]
[1741316325803,0.0522002,140.95,140.92,0.05100275]
[1741316327608,0.0522002,140.95,140.92,2.03590275]
[1741316328100,15.80301039,141.01,140.93,1.8704]
[1741316328501,7.0927,140.98,140.93,1.8704]
[1741316328909,15.80301039,141.01,140.93,1.8704]
[1741316329204,15.80301039,141.01,140.92,1.9849]
[1741316329506,0.04949607,140.98,140.95,0.04835939]
[1741316330511,7.0929,140.97,140.95,0.04835939]
[1741316331505,0.04949607,140.98,140.88,15.80301039]
[1741316331809,15.80301039,140.95,140.85,15.80301039]
[1741316332010,15.80301039,140.95,140.83,4.0403]
[1741316332206,31.14,140.97,140.85,15.80301039]
[1741316332403,17.72251039,140.99,140.86,31.14]
[1741316332598,31.14,140.98,140.86,31.14]
[1741316332805,0.04612851,140.94,140.91,0.04955205]
[1741316334009,7.0953,140.92,140.91,0.04955205]
[1741316335097,38.28062851,140.94,140.91,0.04955205]
[1741316335302,7.14062851,140.94,140.91,0.04955205]
[1741316336012,0.04612851,140.94,140.91,0.04955205]
[1741316336497,7.0948,140.93,140.91,0.04955205]
[1741316336704,0.04612851,140.94,140.91,0.04955205]
[1741316337901,7.14052851,140.94,140.91,0.04955205]
[1741316338108,0.04612851,140.94,140.91,0.04955205]
[1741316338307,7.0951,140.93,140.91,0.04955205]
[1741316338509,0.04612851,140.94,140.91,0.04955205]
[1741316338813,7.0953,140.92,140.91,0.04955205]
[1741316339014,0.04612851,140.94,140.91,0.04955205]
[1741316339511,7.0949,140.93,140.91,0.04955205]
[1741316339708,0.04612851,140.94,140.91,0.04955205]
[1741316339910,7.14062851,140.94,140.91,0.04955205]
[1741316340414,0.04612851,140.94,140.91,0.04955205]
[1741316341715,0.04612851,140.94,140.91,7.14525205]
[1741316341910,0.04612851,140.94,140.91,0.04955205]
[1741316342113,0.04612851,140.94,140.92,31.12]
[1741316342515,0.04612851,140.94,140.93,7.0948]
[1741316344130,0.72172015,141.0,140.95,7.0937]
[1741316344310,0.72172015,141.0,140.92,48.82351039]
[1741316344718,0.72172015,141.0,140.97,7.0924]
[1741316344917,0.72172015,141.0,140.96,31.12]
[1741316345417,0.05108011,140.99,140.97,0.04847011]
[1741316346223,0.05108011,140.99,140.97,7.14097011]
[1741316346414,0.05108011,140.99,140.97,0.04847011]
[1741316346818,0.05108011,140.99,140.98,7.0923]
[1741316347019,0.05108011,140.99,140.97,0.04847011]
[1741316350222,7.0923,140.98,140.97,0.04847011]
[1741316351223,0.05108011,140.99,140.9,1.869]
[1741316351423,1.9967,140.99,140.9,8.9649]
[1741316351621,1.9967,140.99,140.9,1.869]
[1741316352218,0.04525211,140.96,140.93,0.04658016]
[1741316352819,7.13885211,140.96,140.93,0.04658016]
[1741316353221,7.0939,140.95,140.93,0.04658016]
[1741316353618,0.04525211,140.96,140.93,0.04658016]
[1741316354029,0.04525211,140.96,140.93,31.14658016]
[1741316354526,0.04525211,140.96,140.95,7.0938]
[1741316354720,0.04525211,140.96,140.93,31.14658016]
[1741316355123,0.04525211,140.96,140.94,7.0942]
[1741316355630,0.04525211,140.96,140.94,7.094]
[1741316356023,0.04525211,140.96,140.93,31.14658016]
[1741316357023,0.04525211,140.96,140.93,0.04658016]
[1741316357334,7.0943,140.94,140.93,0.04658016]
[1741316363736,7.0962,140.91,140.87,7.0975]
[1741316364133,31.08,140.93,140.86,1.9093]
[1741316364335,7.0966,140.9,140.86,1.9093]
[1741316364540,31.08,140.93,140.86,1.9093]
[1741316364833,7.0968,140.9,140.88,0.05286474]
[1741316365838,7.15010526,140.91,140.88,0.05286474]
[1741316366339,7.0968,140.89,140.88,0.05286474]
[1741316368238,7.099,140.85,140.8,2.0521]
[1741316368430,31.08,140.89,140.8,2.0521]
[1741316369135,15.80301039,140.88,140.8,2.0521]
[1741316369337,0.05296557,140.86,140.77,39.10039059]
[1741316369533,7.1024,140.78,140.77,36.00379059]
[1741316369734,31.08,140.78,140.74,9.80138086]
[1741316370138,0.05170397,140.77,140.74,9.80138086]
[1741316371744,7.1038,140.76,140.74,9.80138086]
[1741316372144,0.05170397,140.77,140.74,9.80138086]
[1741316372347,0.05170397,140.77,140.71,189.02470072]
[1741316372348,0.05170397,140.77,140.71,7.1058]
[1741316372734,0.05170397,140.77,140.68,17.67141039]
[1741316372934,7.1035,140.76,140.7,7.1063]
[1741316373135,0.05209873,140.74,140.7,7.1063]
[1741316373935,7.15699873,140.74,140.68,8.9757]
[1741316374134,0.05209873,140.74,140.68,1.8684]
[1741316375239,0.05209873,140.74,140.71,7.1056]
[1741316375444,0.05209873,140.74,140.68,1.8684]
[1741316375644,0.05209873,140.74,140.7,7.1061]
[1741316375839,0.05209873,140.74,140.68,1.8684]
[1741316376037,0.05209873,140.74,140.7,7.1061]
[1741316376437,0.05209873,140.74,140.68,17.67141039]
[1741316376636,0.05209873,140.74,140.7,7.1062]
[1741316377043,0.05209873,140.74,140.68,17.67141039]
[1741316377335,0.05209873,140.74,140.69,7.1068]
[1741316377542,0.05209873,140.74,140.68,17.67141039]
[1741316377745,0.05209873,140.74,140.71,7.1058]
[1741316378045,0.05209873,140.74,140.68,17.67141039]
[1741316378240,0.05209873,140.74,140.7,7.1063]
[1741316379844,0.05209873,140.74,140.68,1.8684]
[1741316380047,0.05209873,140.74,140.69,7.1068]
[1741316380539,0.05209873,140.74,140.68,1.8684]
[1741316381344,0.05209873,140.74,140.7,7.106]
[1741316381741,0.05209873,140.74,140.68,17.67141039]
[1741316381937,31.08,140.79,140.7,15.80301039]
[1741316382135,15.80301039,140.82,140.71,31.08]
[1741316383034,0.04792742,140.78,140.75,0.0483937]
[1741316384036,7.15062742,140.78,140.75,0.0483937]
[1741316384745,0.04792742,140.78,140.75,0.0483937]
[1741316385446,7.1033,140.77,140.75,0.0483937]
[1741316385938,0.04792742,140.78,140.75,0.0483937]
[1741316386648,7.1032,140.77,140.75,0.0483937]
[1741316387045,0.04792742,140.78,140.75,0.0483937]
[1741316387241,7.1034,140.76,140.75,0.0483937]
[1741316389550,15.80301039,140.76,140.68,1.8684]
[1741316389748,31.08,140.75,140.68,1.8684]
[1741316390239,7.1056,140.72,140.68,1.8684]
[1741316390639,0.04895677,140.71,140.69,0.02069278]
[1741316393747,7.15535677,140.71,140.69,0.02069278]
[1741316393942,0.04895677,140.71,140.69,0.02069278]
[1741316395448,31.10895677,140.71,140.69,0.02069278]
[1741316395650,7.1064,140.7,140.69,0.02069278]
[1741316397050,31.10895677,140.71,140.69,0.02069278]
[1741316397855,7.1064,140.7,140.69,0.02069278]
[1741316398056,31.10895677,140.71,140.69,0.02069278]
[1741316398260,0.04895677,140.71,140.69,0.02069278]
[1741316399350,7.15515677,140.71,140.69,0.02069278]
[1741316399957,0.04895677,140.71,140.69,0.02069278]
[1741316400952,31.06,140.77,140.71,7.1055]
[1741316401253,31.06,140.77,140.7,2.0492]
[1741316401455,31.06,140.77,140.7,9.1553]
[1741316401959,0.05415072,140.75,140.72,0.05216621]
[1741316403662,7.1049,140.73,140.72,0.05216621]
[1741316403865,38.1649,140.73,140.72,0.05216621]
[1741316404155,46.86301039,140.73,140.64,15.80301039]
[1741316404363,7.1071,140.69,140.65,8.9763]
[1741316404955,7.1083,140.67,140.62,1.8828]
[1741316405258,0.048116,140.66,140.62,1.8828]
[1741316405454,7.1094,140.65,140.61,7.1109]
[1741316406153,7.1095,140.64,140.59,5.846]
[1741316406350,15.80301039,140.63,140.56,29.36526052]
[1741316406561,31.06,140.62,140.56,39.16664138]
[1741316406760,7.1119,140.6,140.56,39.16664138]
[1741316407159,0.0463878,140.59,140.56,39.16664138]
[1741316408659,0.0463878,140.59,140.57,7.113]
[1741316408856,0.0463878,140.59,140.56,39.16664138]
[1741316410161,31.06,140.66,140.57,31.06]
[1741316411366,0.04613722,140.63,140.6,0.04844448]
[1741316411861,0.04613722,140.63,140.62,7.1103]
[1741316412061,0.04613722,140.63,140.6,0.04844448]
[1741316412358,7.15613722,140.63,140.6,0.04844448]
[1741316412761,0.04613722,140.63,140.6,0.04844448]
[1741316413367,7.111,140.61,140.6,0.04844448]
[1741316413569,15.84914761,140.63,140.55,7.1139]
[1741316413764,15.80301039,140.63,140.55,7.1139]
[1741316414074,15.80301039,140.63,140.53,5.883]
[1741316414566,7.1108,140.62,140.53,5.883]
[1741316414763,0.05401802,140.59,140.53,5.883]
[1741316415467,0.05401802,140.59,140.55,15.80301039]
[1741316415669,46.86301039,140.68,140.56,31.06]
[1741316415868,2.0577,140.69,140.58,15.80301039]
[1741316416072,281.38301039,140.71,140.59,1.8673]
[1741316416272,7.1071,140.69,140.6,31.06]
[1741316416573,7.1071,140.69,140.6,32.9799]
[1741316416876,0.04592017,140.66,140.63,0.05091783]
[1741316417172,0.04592017,140.66,140.65,7.1089]
[1741316418366,1.8646,140.73,140.64,31.06]
[1741316418878,25.39621831,140.75,140.68,7.107]
[1741316419071,212.6341,140.76,140.64,31.06]
[1741316419266,212.6341,140.76,140.64,56.45621831]
[1741316419581,0.04906055,140.71,140.69,0.04916753]
[1741316419875,7.1029,140.77,140.71,7.1056]
[1741316420170,0.0542871,140.71,140.7,31.06]
[1741316420367,5.9154,140.78,140.7,31.06]
[1741316420562,0.05031012,140.72,140.7,31.06]
[1741316420763,5.9154,140.78,140.7,31.06]
[1741316420965,0.04703974,140.72,140.7,31.10877339]
[1741316421164,0.05053502,140.72,140.7,31.10877339]
[1741316421976,0.05053502,140.72,140.7,38.21517339]
[1741316422173,0.05053502,140.72,140.7,31.10877339]
[1741316422474,0.05053502,140.72,140.71,7.1059]
[1741316422677,31.06,140.8,140.7,31.10877339]
[1741316422869,58.40111831,140.81,140.7,31.06]
[1741316423270,3.9,140.82,140.7,56.45621831]
[1741316423469,31.04,140.85,140.77,7.1028]
[1741316423774,0.0458068,140.82,140.8,0.04495515]
[1741316424077,114.06711656,140.86,140.76,38.143]
[1741316424281,0.04488939,140.82,140.8,0.04683392]
[1741316424675,7.101,140.81,140.8,0.04683392]
[1741316424979,0.04488939,140.82,140.8,0.04683392]
[1741316426675,7.1009,140.81,140.8,0.04683392]
[1741316429184,0.04488939,140.82,140.8,0.04683392]
[1741316429377,0.04488939,140.82,140.8,31.06683392]
[1741316429583,0.04488939,140.82,140.8,38.16783392]
[1741316429780,0.04488939,140.82,140.8,31.06683392]
[1741316429986,0.04488939,140.82,140.81,7.1009]
[1741316430182,7.0979,140.87,140.8,31.06683392]
[1741316430490,88.09335576,140.9,140.81,1.9564]
[1741316431388,0.05445295,140.87,140.84,0.04835583]
[1741316432081,7.0988,140.85,140.84,0.04835583]
[1741316432475,0.05445295,140.87,140.84,0.04835583]
[1741316433690,0.05445295,140.87,140.85,7.0988]
[1741316433883,0.05445295,140.87,140.85,1.909]
[1741316435377,0.05445295,140.87,140.85,3.9743]
[1741316435781,7.0967,140.9,140.85,3.9743]
[1741316436382,25.39621831,140.96,140.85,3.9743]
[1741316437084,7.0963,140.9,140.89,0.05256487]
[1741316437279,0.05194374,140.92,140.89,0.05256487]
[1741316438184,7.0958,140.91,140.89,0.05256487]
[1741316438385,0.05194374,140.92,140.89,0.05256487]
[1741316439082,0.05194374,140.92,140.89,2.03186487]
[1741316439285,0.72172015,141.0,140.89,2.03186487]
[1741316439479,0.72172015,141.0,140.89,1.9793]
[1741316439893,0.72172015,141.0,140.9,7.0961]
[1741316440291,0.72172015,141.0,140.89,1.9793]
[1741316440590,0.05450415,140.96,140.94,0.05100759]
[1741316440787,7.0938,140.95,140.94,0.05100759]
[1741316440990,30.98,140.95,140.85,34.9543]
[1741316441380,30.98,140.95,140.85,3.9743]
[1741316441691,25.39621831,140.93,140.79,30.98]
[1741316441885,25.39621831,140.93,140.82,7.1003]
[1741316442093,0.0499135,140.87,140.85,0.04965727]
[1741316442593,7.0983,140.86,140.85,0.04965727]
[1741316442891,0.05393967,140.87,140.85,0.04965727]
[1741316443394,0.05393967,140.87,140.86,30.98]
[1741316443691,30.98,140.96,140.86,30.98]
[1741316443893,31.34081831,140.99,140.87,1.9165]
[1741316444080,30.98,140.98,140.87,1.9165]
[1741316444486,30.98,140.98,140.87,3.9506]
[1741316444787,0.05277382,140.94,140.91,0.05013342]
[1741316445680,7.0953,140.92,140.91,0.05013342]
[1741316445894,25.39621831,140.93,140.83,30.98]
[1741316446091,27.34231831,140.93,140.83,30.98]
[1741316446392,7.0967,140.9,140.83,30.98]
[1741316446588,27.34231831,140.93,140.83,30.98]
[1741316446789,27.34231831,140.93,140.81,3.8688]
[1741316446989,27.34231831,140.93,140.83,30.98]
[1741316447178,0.04995869,140.89,140.87,0.05193808]
[1741316449387,7.14685869,140.89,140.87,0.05193808]
[1741316449792,0.04995869,140.89,140.87,0.05193808]
[1741316450493,0.04995869,140.89,140.88,7.0973]
[1741316450885,9.0393,140.97,140.88,7.3538]
[1741316451087,7.0932,140.97,140.88,3.8138]
[1741316451282,32.926,140.99,140.88,3.8138]
[1741316451484,32.926,140.99,140.92,7.0951]
[1741316451485,7.0929,140.97,140.92,7.0951]
[1741316451685,32.926,140.99,140.91,30.96]
[1741316451994,0.04729214,140.96,140.94,0.05386847]
[1741316452186,7.14099214,140.96,140.94,0.05386847]
[1741316452493,0.04729214,140.96,140.94,0.05386847]
[1741316452895,7.0938,140.95,140.94,0.05386847]
[1741316453091,0.04729214,140.96,140.94,0.05386847]
[1741316453600,7.14069214,140.96,140.94,0.05386847]
[1741316453889,0.04729214,140.96,140.94,0.05386847]
[1741316455092,0.04729214,140.96,140.95,38.0538]
[1741316455398,0.73794157,141.03,140.95,32.9919]
[1741316455586,0.73794157,141.03,141.0,7.0909]
[1741316455783,0.73794157,141.03,140.99,30.96]
[1741316455997,0.73794157,141.03,141.02,7.0903]
[1741316456293,0.73794157,141.03,140.99,30.96]
[1741316456500,0.73794157,141.03,141.01,0.05406264]
[1741316457299,0.73794157,141.03,141.02,7.0903]
[1741316458098,0.73794157,141.03,141.02,11.0518]
[1741316458402,0.73794157,141.03,141.01,0.05406264]
[1741316461899,0.73794157,141.03,140.94,34.9015]
[1741316462102,4.55974157,141.03,140.94,3.9615]
[1741316462294,7.0952,140.93,140.88,25.39621831]
[1741316462498,30.94,140.97,140.87,234.08]
[1741316462895,30.94,140.97,140.87,265.02]
[1741316463095,0.05158586,140.93,140.91,0.04816822]
[1741316463297,30.99158586,140.93,140.82,32.54656817]
[1741316463494,56.33621831,140.93,140.82,36.8553]
[1741316463702,2.0119,140.92,140.82,5.9153]
[1741316463895,7.0968,140.89,140.83,7.0997]
[1741316464099,4.0,140.92,140.82,5.9153]
[1741316464306,30.94,140.93,140.82,31.31151831]
[1741316464606,30.94,140.97,140.86,0.05159297]
[1741316464807,30.94,140.97,140.87,30.94]
[1741316465196,30.94,141.0,140.88,25.39621831]
[1741316465599,30.94,141.0,140.89,3.8733]
[1741316465803,0.05307233,140.95,140.89,3.8733]
[1741316466006,0.05307233,140.95,140.93,0.04855528]
[1741316466306,234.81794157,141.03,140.94,25.39621831]
[1741316466307,0.73794157,141.03,140.94,25.39621831]
[1741316467498,0.0523873,141.0,140.97,0.04498897]
[1741316467895,7.0923,140.98,140.97,0.04498897]
[1741316468108,0.0523873,141.0,140.9,236.0709]
[1741316468304,1.9466,141.0,140.9,236.0709]
[1741316469305,0.05160308,140.96,140.94,0.045126]
[1741316472815,0.05160308,140.96,140.95,7.0938]
[1741316473107,0.73794157,141.03,140.94,0.045126]
[1741316473505,7.0903,141.02,140.96,7.093]
[1741316473810,0.73794157,141.03,140.97,30.92]
[1741316474206,0.04479681,141.01,140.99,0.04712854]
[1741316477800,0.04479681,141.01,141.0,7.0913]
[1741316479006,0.73079213,141.05,140.99,1.97512854]
[1741316479313,0.73079213,141.05,141.0,41.10356968]
[1741316479509,0.73079213,141.05,141.04,7.0893]
[1741316479913,0.73079213,141.05,141.01,30.92]
[1741316480107,0.73079213,141.05,141.03,0.05325466]
[1741316480909,7.0893,141.04,141.03,0.05325466]
[1741316481104,0.73079213,141.05,141.03,0.05325466]
[1741316484719,7.0893,141.04,141.03,0.05325466]
[1741316485321,0.73079213,141.05,140.98,3.9625]
[1741316485619,0.73079213,141.05,140.98,1.9109]
[1741316486209,0.73079213,141.05,140.95,9.0745]
[1741316486413,7.0926,140.98,140.94,2.0119]
[1741316486611,72.00356968,141.0,140.92,30.9]
[1741316487012,7.0932,140.97,140.92,37.9953]
[1741316487212,30.9,141.0,140.92,30.9]
[1741316487409,30.9,141.0,140.96,7.093]
[1741316487721,7.0912,141.01,140.92,30.9]
[1741316488019,0.04809394,140.99,140.97,7.14348753]
[1741316488222,0.04809394,140.99,140.97,0.05078753]
[1741316488623,0.04809394,140.99,140.98,7.0923]
[1741316490116,0.04809394,140.99,140.97,0.05078753]
[1741316491617,0.04809394,140.99,140.97,7.14348753]
[1741316492018,0.04809394,140.99,140.97,0.05078753]
[1741316492220,7.0923,140.98,140.97,0.05078753]
[1741316492526,0.04809394,140.99,140.9,2.0009]
[1741316492726,1.9938,141.01,140.9,2.0009]
[1741316492926,25.2990685,140.99,140.89,3.7633]
[1741316493129,25.2990685,140.99,140.85,25.2990685]
[1741316493130,7.0962,140.91,140.86,10.9214]
[1741316493326,30.9,140.93,140.84,1.864]
[1741316493523,56.1990685,140.93,140.83,1.8993]
[1741316493728,3.9177,140.92,140.83,1.8993]
[1741316493920,0.04497805,140.9,140.87,0.04915027]
[1741316495925,7.0972,140.89,140.87,0.04915027]
[1741316496123,0.04497805,140.9,140.87,0.04915027]
[1741316496921,7.0968,140.89,140.87,0.04915027]
[1741316497122,0.04497805,140.9,140.87,0.04915027]
[1741316498838,7.0973,140.88,140.87,0.04915027]
[1741316499339,7.0995,140.84,140.8,1.864]
[1741316499530,25.2990685,140.88,140.79,1.9057]
[1741316499931,7.1,140.83,140.79,1.9057]
[1741316500440,7.0994,140.84,140.8,7.1013]
[1741316500741,0.04622532,140.82,140.8,7.15483957]
[1741316500940,30.9,140.85,140.8,0.05353957]
[1741316501131,7.14557191,140.82,140.8,0.05353957]
[1741316501528,0.04507191,140.82,140.8,0.05353957]
[1741316502836,0.04507191,140.82,140.81,7.1009]
[1741316503340,0.04507191,140.82,140.8,0.05353957]
[1741316504345,259.4190685,140.94,140.8,2.09073957]
[1741316504346,37.9962,140.91,140.8,2.09073957]
[1741316504550,30.9,140.91,140.8,2.0372]
[1741316504843,30.9,140.91,140.81,25.2990685]
[1741316505542,0.04910491,140.87,140.85,0.04938947]
[1741316507238,0.04910491,140.87,140.86,7.0983]
[1741316508138,0.04910491,140.87,140.85,7.14788947]
[1741316508539,0.04910491,140.87,140.85,0.04938947]
[1741316510937,0.04910491,140.87,140.86,7.0983]
[1741316513647,0.04910491,140.87,140.85,9.20168947]
[1741316514034,0.04910491,140.87,140.85,2.10298947]
[1741316515145,7.14730491,140.87,140.85,0.04938947]
[1741316516137,0.04910491,140.87,140.85,0.04938947]
[1741316516441,7.0983,140.86,140.85,0.04938947]
[1741316516642,0.04910491,140.87,140.85,0.04938947]
[1741316516945,7.14710491,140.87,140.85,0.04938947]
[1741316517445,0.04910491,140.87,140.85,0.04938947]
[1741316518247,0.04910491,140.87,140.85,7.14788947]
[1741316519147,0.04910491,140.87,140.85,0.04938947]
[1741316520447,0.04910491,140.87,140.86,7.0983]
[1741316521351,0.04910491,140.87,140.86,37.9983]
[1741316522045,0.04910491,140.87,140.86,30.9]
[1741316522852,0.04910491,140.87,140.85,0.04938947]
[1741316523248,0.04910491,140.87,140.86,7.0983]
[1741316525663,0.04910491,140.87,140.85,7.14808947]
[1741316525953,0.04910491,140.87,140.85,0.04938947]
[1741316527254,7.0983,140.86,140.85,0.04938947]
[1741316527959,0.04910491,140.87,140.85,0.04938947]
[1741316529563,7.14700491,140.87,140.85,0.04938947]
[1741316529867,0.04910491,140.87,140.85,0.04938947]
[1741316530058,0.04910491,140.87,140.85,30.92938947]
[1741316530259,3.9047,140.95,140.85,30.92938947]
[1741316530457,3.9047,140.95,140.89,7.0965]
[1741316530854,7.0944,140.94,140.89,7.0965]
[1741316531051,3.9047,140.95,140.89,7.0965]
[1741316531256,3.9047,140.95,140.9,7.0962]
[1741316531566,0.05272984,140.93,140.91,0.05159322]
[1741316532061,7.0953,140.92,140.91,0.05159322]
[1741316532265,0.05272984,140.93,140.91,0.05159322]
[1741316533764,7.14792984,140.93,140.91,0.05159322]
[1741316534169,0.05272984,140.93,140.91,0.05159322]
[1741316534466,17.18470341,140.99,140.91,0.05159322]
[1741316534870,17.18470341,140.99,140.97,7.0928]
[1741316535469,77.16221656,141.01,140.95,30.88]
[1741316535665,0.04616967,140.99,140.97,0.04789225]
[1741316535965,0.04616967,140.99,140.98,7.0923]
[1741316536175,77.16221656,141.01,140.97,2.06419225]
[1741316536364,77.16221656,141.01,141.0,7.0913]
[1741316536558,77.16221656,141.01,141.0,37.9713]
[1741316537162,74.06061656,141.01,141.0,37.9713]
[1741316537367,0.04715051,141.02,141.01,7.0908]
[1741316537876,0.73079213,141.05,141.03,7.0896]
[1741316538170,0.73079213,141.05,141.0,30.92736316]
[1741316538369,0.73079213,141.05,141.0,265.04736316]
[1741316539070,0.05275485,141.04,141.03,7.0897]
[1741316539267,0.74838509,141.07,141.0,265.04736316]
[1741316539475,0.74838509,141.07,141.02,25.2990685]
[1741316539681,0.74838509,141.07,141.06,7.0883]
[1741316539974,0.74838509,141.07,141.06,30.86]
[1741316541876,0.74838509,141.07,141.05,0.04733307]
[1741316542574,7.0883,141.06,141.05,0.04733307]
[1741316543165,3.54,141.06,140.96,30.84]
[1741316543364,2.0041,141.06,140.94,234.04]
[1741316543568,25.2990685,141.05,140.94,264.88]
[1741316543965,30.84,141.05,140.94,264.88]
[1741316544382,0.05198749,141.01,140.98,0.05289308]
[1741316544780,7.0918,140.99,140.98,0.05289308]
[1741316544980,30.84,141.0,140.9,30.84]
[1741316545982,7.0945,140.94,140.9,30.84]
[1741316546282,0.04731254,140.96,140.88,243.1461]
[1741316546481,7.0948,140.93,140.91,0.04587318]
[1741316546670,30.84,140.96,140.91,0.04587318]
[1741316546874,0.05294267,140.93,140.91,0.04587318]
[1741316547074,7.14784267,140.93,140.91,0.04587318]
[1741316547483,0.05294267,140.93,140.91,0.04587318]
[1741316551083,0.05294267,140.93,140.91,7.14157318]
[1741316551783,0.05294267,140.93,140.91,0.04587318]
[1741316552390,7.0953,140.92,140.91,0.04587318]
[1741316552782,0.05294267,140.93,140.84,1.9703]
[1741316553085,7.0974,140.88,140.82,264.86]
[1741316553276,30.84,140.92,140.82,264.86]
[1741316553277,32.7374,140.92,140.82,264.86]
[1741316554084,0.04935786,140.88,140.86,0.05456577]
[1741316554686,0.04935786,140.88,140.86,7.15266577]
[1741316554887,0.04935786,140.88,140.86,0.05456577]
[1741316555191,7.14685786,140.88,140.86,0.05456577]
[1741316555494,0.04935786,140.88,140.86,0.05456577]
[1741316556291,25.2990685,140.96,140.91,7.0956]
[1741316556292,30.84,140.95,140.91,7.0956]
[1741316556495,30.84,140.95,140.87,30.84]
[1741316557488,0.04759555,140.92,140.9,0.05073284]
[1741316558378,7.0958,140.91,140.9,3.284e-05]
[1741316558595,37.9358,140.91,140.9,3.284e-05]
[1741316559193,7.0997,140.84,140.79,32.8207]
[1741316559686,30.84,140.87,140.79,32.8207]
[1741316559895,1.912,140.9,140.79,32.8207]
[1741316560089,30.84,140.95,140.87,7.0975]
[1741316560484,0.04996166,140.92,140.85,30.84]
[1741316560784,7.096,140.91,140.9,0.04529299]
[1741316560977,0.04996166,140.92,140.89,0.04605904]
[1741316561381,7.0963,140.9,140.89,0.04605904]
[1741316562390,59.6790685,140.9,140.79,1.9807]
[1741316562685,25.2990685,140.87,140.79,1.9807]
[1741316562880,7.1005,140.82,140.79,1.9807]